bitfinex/quotes_ETHUSD_20250629
["timestamp","ask_amount","ask_price","bid_price","bid_amount"]
[1751238334486,2.212,2524.5,2523.8,3.16979115]
[1751238334650,0.53808599,2524.4,2523.8,3.16971989]
[1751238334852,0.53808599,2524.4,2523.4,3.17032575]
[1751238335059,3.3841,2524.7,2524.4,3.16897101]
[1751238335259,1.1721,2524.7,2524.6,3.16881882]
[1751238335472,3.5995,2525.0,2524.0,20.0]
[1751238335651,3.5995,2525.0,2524.9,3.16844231]
[1751238336298,3.5995,2525.0,2524.3,3.16914386]
[1751238336461,4.10476065,2525.0,2523.4,3.17025627]
[1751238336668,4.10476065,2525.0,2523.0,9.0839513]
[1751238336669,1.2091,2524.9,2523.8,3.1697284]
[1751238336885,1.2091,2524.2,2523.2,1.2212]
[1751238337066,1.2091,2524.2,2523.6,3.17001703]
[1751238337067,2.212,2524.1,2523.6,3.17001703]
[1751238337265,0.1976,2523.7,2523.4,3.17025831]
[1751238337466,0.1976,2523.7,2523.1,3.17068228]
[1751238337467,3.17003532,2523.7,2523.1,3.17068228]
[1751238337695,0.1976,2523.4,2523.3,3.17045139]
[1751238337907,2.212,2523.6,2523.0,3.17081954]
[1751238338073,0.1976,2523.4,2522.9,1.83042169]
[1751238338401,0.1976,2523.4,2522.9,4.80370661]
[1751238338565,0.1976,2523.2,2522.9,1.63282169]
[1751238338761,2.212,2523.7,2523.5,3.17017394]
[1751238339104,4.10476065,2525.0,2523.7,0.55]
[1751238339401,3.5995,2525.0,2524.3,1.221]
[1751238339695,3.5995,2525.0,2524.0,3.1695721]
[1751238339991,1.4017,2523.2,2522.6,3.17123771]
[1751238340192,3.6997,2523.2,2522.8,3.171078]
[1751238340494,3.17080839,2523.1,2522.0,1.4145]
[1751238340692,2.298,2523.0,2522.4,3.17157411]
[1751238340995,4.06967,2523.2,2522.2,20.0]
[1751238341159,3.6997,2523.2,2522.7,3.17112394]
[1751238341488,1.4017,2523.2,2522.6,3.17124039]
[1751238341669,1.4017,2523.2,2522.6,3.17121226]
[1751238341670,2.298,2523.1,2522.6,3.17121226]
[1751238341869,2.298,2523.1,2522.6,3.17124797]
[1751238342199,3.17101137,2522.9,2522.7,0.34945028]
[1751238342489,3.17101137,2522.9,2522.0,1.4145]
[1751238342490,3.17121807,2522.7,2522.2,3.171832]
[1751238342693,1.4017,2523.2,2522.7,3.17109454]
[1751238342868,2.298,2523.0,2522.8,0.34967933]
[1751238343188,10.20915969,2524.0,2522.2,11.4437]
[1751238343189,2.298,2523.3,2522.5,10.0]
[1751238343359,2.66835,2523.3,2522.6,3.52101733]
[1751238343554,2.66835,2523.3,2522.8,3.17107273]
[1751238343790,0.37035,2523.3,2522.3,20.64767723]
[1751238344089,2.298,2523.2,2523.0,3.17074786]
[1751238344291,2.298,2523.2,2522.4,20.0]
[1751238344586,5.46860537,2523.2,2522.6,3.1712599]
[1751238345092,5.46860537,2523.2,2522.5,3.17139845]
[1751238345093,3.17070737,2523.1,2522.5,3.17139845]
[1751238345255,0.54687074,2523.0,2522.5,3.17139845]
[1751238345693,0.54687074,2523.0,2522.5,3.17141817]
[1751238345990,1.4539,2522.9,2521.9,0.002]
[1751238346491,2.298,2523.4,2522.3,10.0]
[1751238346787,3.1705827,2523.2,2522.6,3.17126384]
[1751238346968,3.17083618,2523.0,2522.4,3.17155061]
[1751238347171,3.17076314,2523.1,2522.4,3.17155061]
[1751238347491,3.17057704,2523.2,2522.4,3.17155061]
[1751238347492,3.1695721,2524.0,2522.5,31.4531]
[1751238347694,3.7087,2523.9,2522.5,1.4531]
[1751238347862,3.17017784,2523.6,2523.0,3.1708188]
[1751238348063,0.37087,2523.8,2523.2,3.17057118]
[1751238348266,1.4107,2523.9,2523.2,3.17057118]
[1751238348267,2.298,2523.7,2523.4,3.1702397]
[1751238348466,2.298,2523.6,2522.8,3.17107975]
[1751238348771,2.298,2523.6,2523.5,3.17013356]
[1751238348972,2.298,2523.6,2523.4,3.17026841]
[1751238349163,2.298,2523.6,2523.3,3.17040233]
[1751238349493,0.1976,2523.5,2523.1,0.1976]
[1751238349688,0.1976,2523.3,2523.0,3.1707716]
[1751238349987,0.1976,2523.3,2522.9,0.1976]
[1751238349988,0.1976,2523.0,2522.9,3.17095406]
[1751238350190,1.458,2523.6,2522.7,10.0]
[1751238350379,0.1976,2523.4,2523.0,3.17082837]
[1751238350578,0.1976,2523.4,2523.2,3.17050851]
[1751238350780,0.1976,2523.4,2523.1,3.1706253]
[1751238351093,0.1976,2523.4,2522.9,3.17088462]
[1751238351094,0.39536,2523.4,2522.9,3.17088462]
[1751238351262,0.1976,2523.0,2522.6,3.36889636]
[1751238351592,4.62933116,2522.6,2522.5,0.002]
[1751238351793,3.36881803,2522.7,2521.9,0.002]
[1751238351794,4.53728564,2522.0,2521.9,0.002]
[1751238351993,7.60621077,2522.0,2521.9,0.002]
[1751238352362,2.13612513,2522.0,2521.9,0.002]
[1751238352581,6.83528564,2522.0,2521.9,0.002]
[1751238353162,6.78528564,2522.0,2521.9,0.002]
[1751238353695,3.17248149,2521.7,2521.1,3.17311869]
[1751238353882,3.17248149,2521.7,2520.8,0.1996]
[1751238353883,0.1976,2521.2,2520.8,3.37315791]
[1751238354084,2.298,2521.1,2520.9,3.17346489]
[1751238354399,2.298,2521.1,2520.8,0.002]
[1751238354582,3.17346979,2520.9,2520.8,0.002]
[1751238354994,10.65046979,2520.9,2520.8,0.002]
[1751238355297,9.56729826,2521.1,2520.8,0.002]
[1751238355298,0.2298,2521.1,2520.8,0.002]
[1751238355459,3.17346979,2520.9,2520.8,0.002]
[1751238355664,5.47146979,2520.9,2520.8,0.002]
[1751238355865,2.298,2520.9,2520.8,0.002]
[1751238356189,4.51386979,2520.9,2520.8,0.002]
[1751238356397,4.51386979,2520.9,2520.8,3.17559568]
[1751238356398,1.3404,2520.9,2520.8,3.17559568]
[1751238356581,3.17259457,2521.6,2520.8,0.002]
[1751238356901,3.97497053,2521.5,2521.1,3.17311353]
[1751238357101,0.36891107,2521.4,2520.8,0.002]
[1751238357293,3.17309864,2521.2,2520.8,0.002]
[1751238357616,2.66791107,2521.1,2520.8,0.002]
[1751238357912,2.299,2521.1,2520.9,3.17345734]
[1751238358295,1.3929,2521.3,2520.8,0.002]
[1751238358465,0.36819929,2521.2,2520.8,0.002]
[1751238358826,2.66721052,2521.1,2520.9,3.17346979]
[1751238358993,0.36821052,2521.0,2520.9,3.17346979]
[1751238359167,2.66721052,2521.0,2520.9,3.17346979]
[1751238359367,2.66721052,2521.0,2520.8,0.002]
[1751238359575,5.15140136,2520.9,2520.8,0.002]
[1751238360002,1.343,2520.8,2519.7,0.002]
[1751238360207,3.17485514,2519.8,2519.7,0.002]
[1751238360372,1.343,2519.8,2519.7,3.17698114]
[1751238360580,12.21,2519.9,2519.7,3.17689316]
[1751238360868,9.911,2519.9,2519.8,3.17485514]
[1751238361288,9.911,2519.9,2519.7,0.002]
[1751238361711,9.911,2519.9,2519.8,3.17485514]
[1751238363511,11.132,2519.9,2519.7,0.002]
[1751238364015,4.52955514,2519.8,2519.7,0.002]
[1751238364371,1.3547,2519.8,2519.7,0.002]
[1751238364577,1.3547,2520.2,2520.1,3.1744772]
[1751238364783,1.5523,2520.2,2520.1,3.1744772]
[1751238365007,0.1976,2520.2,2520.1,3.1744772]
[1751238365492,0.1976,2520.2,2519.9,3.17466425]
[1751238365672,0.1984,2520.1,2519.7,3.17692907]
[1751238365875,0.1984,2520.1,2520.0,3.17460317]
[1751238366102,3.6606,2520.9,2520.0,3.37300317]
[1751238366325,0.1976,2520.9,2520.8,3.17359568]
[1751238367498,1.4412,2521.3,2520.9,3.17337221]
[1751238367701,0.1976,2521.0,2519.5,3.17514538]
[1751238368002,2.3,2521.1,2519.1,0.30471139]
[1751238368003,0.1976,2520.6,2520.5,3.17396209]
[1751238368508,0.1976,2520.6,2520.2,0.1976]
[1751238368825,0.1976,2520.6,2519.8,3.17476645]
[1751238368826,0.1976,2520.2,2519.8,3.17476645]
[1751238369131,0.1976,2520.2,2519.7,0.002]
[1751238369438,2.3,2520.2,2520.0,3.17450105]
[1751238369600,0.1984,2520.0,2519.9,3.1746477]
[1751238369955,0.1984,2520.0,2519.7,0.002]
[1751238369956,1.3272,2519.9,2519.7,0.002]
[1751238370129,3.17485514,2519.8,2519.7,0.002]
[1751238370307,3.62506065,2519.8,2519.7,0.002]
[1751238370633,4.70058114,2519.7,2519.6,0.002]
[1751238370832,10.21488403,2519.4,2517.9,1.4241]
[1751238371031,1.3272,2519.2,2518.0,0.2004]
[1751238371328,1.3272,2519.2,2518.4,3.17662007]
[1751238371329,0.1984,2518.5,2518.4,3.17662007]
[1751238371548,4.50283116,2519.2,2518.0,0.2004]
[1751238371549,2.27,2519.1,2518.3,3.1767183]
[1751238371753,1.3272,2519.2,2518.8,3.17607947]
[1751238372035,0.1984,2519.1,2518.6,0.1984]
[1751238372201,0.1984,2519.1,2519.0,3.17586343]
[1751238372716,0.1984,2519.1,2518.0,0.002]
[1751238372717,0.1984,2519.1,2518.4,0.1984]
[1751238372914,0.1984,2518.9,2518.8,3.1760431]
[1751238373228,5.44661174,2519.2,2518.6,3.17631883]
[1751238373554,5.44661174,2519.2,2518.6,3.1783564]
[1751238373555,1.4673,2519.1,2518.6,3.1783564]
[1751238373742,1.4673,2519.1,2518.6,0.002]
[1751238373941,7.432,2519.0,2518.6,0.002]
[1751238374120,11.61023997,2518.7,2518.6,0.002]
[1751238374657,21.31323997,2518.7,2518.6,0.002]
[1751238374825,23.76217662,2518.7,2518.6,0.002]
[1751238375223,7.01967836,2518.7,2518.6,0.002]
[1751238375417,14.27474171,2518.7,2518.6,0.002]
[1751238376128,4.57074171,2518.7,2518.6,0.002]
[1751238376443,11.0875,2518.7,2518.6,0.002]
[1751238376665,3.6655,2518.7,2518.6,0.002]
[1751238377216,2.271,2518.7,2518.6,0.002]
[1751238377561,1.3384,2519.1,2519.0,3.17586343]
[1751238377730,1.3384,2519.7,2519.3,3.17540097]
[1751238378040,2.63588584,2519.6,2518.6,0.2004]
[1751238378350,0.1984,2519.2,2518.6,0.002]
[1751238378554,3.25494833,2519.7,2518.6,0.002]
[1751238378769,0.1984,2519.1,2518.7,0.1984]
[1751238379057,0.1984,2519.1,2519.0,3.17586343]
[1751238379611,0.56367541,2519.1,2519.0,3.17586343]
[1751238380018,2.272,2519.4,2519.0,3.17586343]
[1751238380259,0.56367541,2519.3,2519.2,3.1756113]
[1751238380457,0.36527541,2519.3,2519.0,3.17585566]
[1751238380644,0.36527541,2519.3,2518.5,1.3443]
[1751238380645,0.1984,2519.1,2518.9,3.17590438]
[1751238380848,0.36527541,2519.2,2519.0,3.17586343]
[1751238381015,0.1984,2519.0,2518.9,3.17598951]
[1751238381243,0.56367541,2519.6,2519.5,3.17523318]
[1751238381439,1.70844,2520.0,2519.9,3.17472915]
[1751238381683,2.07433883,2520.0,2519.9,2.91674864]
[1751238382268,2.27273883,2520.0,2519.9,2.91674864]
[1751238382474,2.27273883,2520.0,2519.1,1.4163]
[1751238382783,2.27273883,2520.0,2519.0,0.1984]
[1751238382784,0.1984,2519.8,2519.0,0.1984]
[1751238383084,0.1984,2519.2,2519.1,3.17573736]
[1751238383876,0.1984,2519.2,2518.7,1.4163]
[1751238383877,0.1984,2519.2,2518.7,3.17624171]
[1751238384042,3.17540445,2519.4,2518.8,3.17611561]
[1751238384384,0.31754045,2519.3,2518.8,3.17611561]
[1751238384562,0.31754045,2519.3,2518.9,3.17598648]
[1751238384765,0.31754045,2519.3,2518.8,3.17606063]
[1751238384963,2.272,2519.4,2519.0,3.17579706]
[1751238385163,0.1984,2519.1,2518.9,3.17593827]
[1751238385365,2.272,2519.4,2518.6,0.002]
[1751238385366,1.3773,2519.2,2518.6,0.002]
[1751238385565,0.1984,2518.8,2518.7,3.17615323]
[1751238385747,0.1984,2518.8,2518.7,3.17624171]
[1751238386548,1.3773,2519.2,2518.6,3.17836754]
[1751238386549,0.1984,2518.7,2518.6,0.002]
[1751238386744,0.1984,2518.7,2518.6,13.17836782]
[1751238387046,0.001,2519.6,2518.6,13.17836782]
[1751238387047,0.001,2519.6,2519.5,3.17523318]
[1751238387247,0.1994,2519.6,2519.4,3.17530596]
[1751238387442,0.1994,2519.6,2519.5,3.17523318]
[1751238387763,0.1994,2519.6,2519.0,1.4444]
[1751238387764,0.001,2519.6,2519.3,3.17542691]
[1751238387968,0.1984,2519.4,2519.3,3.17542691]
[1751238388182,1.5757,2519.4,2517.0,1.4444]
[1751238388384,3.18040868,2515.4,2515.1,9.81842626]
[1751238388565,3.18091451,2515.0,2514.9,7.46756725]
[1751238388770,16.36166099,2514.7,2514.6,0.1984]
[1751238388977,6.9117875,2514.6,2513.4,0.001]
[1751238389300,1.3617,2514.3,2513.7,2.65097842]
[1751238389582,7.30705592,2514.2,2513.7,4.75764508]
[1751238389802,3.180367,2514.0,2513.7,4.75764508]
[1751238389951,1.15707559,2514.2,2513.4,0.001]
[1751238390150,3.18226685,2514.0,2513.4,0.001]
[1751238390351,0.9446988,2513.9,2513.4,0.001]
[1751238390548,0.9446988,2513.8,2513.4,0.001]
[1751238390853,3.18203388,2514.2,2513.4,0.001]
[1751238391049,0.94314658,2514.1,2513.4,0.001]
[1751238391284,0.94314658,2514.0,2512.9,5.54393]
[1751238391486,0.94314658,2514.0,2512.8,1.15933012]
[1751238391487,9.39899515,2513.2,2512.8,1.15933012]
[1751238391686,4.85951102,2513.1,2513.0,3.18344608]
[1751238391856,0.94314658,2513.1,2513.0,3.18344608]
[1751238392056,0.94314658,2513.1,2513.0,33.18344608]
[1751238392392,0.94314658,2513.1,2513.0,24.11023408]
[1751238392888,4.06528628,2513.1,2513.0,24.11023408]
[1751238393088,4.06528628,2513.1,2513.0,43.73344608]
[1751238393254,3.90267691,2513.5,2513.0,43.73344608]
[1751238393255,3.10506115,2513.4,2513.1,43.7333194]
[1751238393453,3.90267691,2513.9,2513.7,0.55]
[1751238393651,3.90267691,2514.5,2514.4,3.18167356]
[1751238393854,0.36876032,2514.5,2514.4,3.18167356]
[1751238394093,4.27143723,2514.5,2514.4,3.18167356]
[1751238394464,0.36876032,2514.5,2514.4,3.18167356]
[1751238394697,0.36876032,2514.7,2514.6,3.1814205]
[1751238395025,4.27143723,2514.7,2514.6,3.1814205]
[1751238395152,3.90267691,2514.8,2514.7,3.18129399]
[1751238395485,0.36714901,2514.8,2514.0,4.60052722]
[1751238395688,0.36714901,2514.8,2514.6,3.18140246]
[1751238395889,0.36714901,2514.9,2514.6,3.18140246]
[1751238396184,0.36714901,2515.0,2514.7,3.18128263]
[1751238396392,0.36714901,2515.0,2514.0,1.4184]
[1751238396766,2.906,2515.1,2514.7,3.18128741]
[1751238396967,0.36714901,2515.0,2514.7,3.18128741]
[1751238397164,0.36714901,2515.0,2514.8,3.18116523]
[1751238397539,0.36714901,2515.1,2514.8,3.18116523]
[1751238397726,2.906,2515.2,2514.8,3.18114555]
[1751238398011,0.36714901,2515.1,2514.9,3.18099233]
[1751238398184,0.36714901,2515.1,2514.8,3.18114555]
[1751238398185,0.1984,2514.8,2514.2,0.1984]
[1751238398386,0.1984,2514.8,2514.7,3.18129399]
[1751238398906,0.1984,2514.8,2514.6,3.18138335]
[1751238399201,0.002,2515.0,2514.2,3.18192665]
[1751238399370,0.002,2515.0,2514.7,3.18118865]
[1751238399565,0.002,2515.0,2514.6,3.18138191]
[1751238399777,0.1984,2514.7,2514.6,3.18138191]
[1751238401007,0.002,2515.0,2514.9,3.18104099]
[1751238401565,0.002,2515.0,2514.8,3.18110769]
[1751238401804,0.1984,2514.9,2514.8,3.18110769]
[1751238402296,0.002,2515.0,2514.7,3.18119054]
[1751238402499,0.002,2515.0,2514.8,3.18116376]
[1751238403383,0.002,2515.0,2514.7,3.18127212]
[1751238403797,0.002,2515.0,2514.6,3.18140766]
[1751238403798,0.002,2515.0,2514.6,3.18134587]
[1751238404000,0.60197981,2515.0,2513.9,8.293]
[1751238404173,3.18110598,2514.9,2514.3,3.18167897]
[1751238404600,3.18110598,2514.9,2514.2,3.18190218]
[1751238404601,2.817,2514.8,2514.4,3.18166001]
[1751238404903,3.18104099,2514.9,2514.3,3.18179916]
[1751238405068,2.817,2514.8,2514.3,3.18171184]
[1751238405267,3.74506142,2514.8,2513.6,4.59377583]
[1751238405478,0.92806142,2514.7,2514.3,3.18173484]
[1751238405679,0.92806142,2514.6,2514.4,3.18167174]
[1751238405884,0.92806142,2514.5,2514.4,3.18167174]
[1751238406080,0.92806142,2514.5,2514.3,3.18173772]
[1751238406292,4.33141024,2514.8,2514.3,3.18173772]
[1751238406571,0.92785473,2514.7,2513.6,1.4111]
[1751238406772,0.002,2515.0,2514.5,3.18154702]
[1751238406989,0.002,2515.0,2514.9,3.18104099]
[1751238407177,0.92960018,2515.0,2514.1,3.18205321]
[1751238407484,0.92760018,2514.9,2514.8,3.18116748]
[1751238409990,0.92960018,2514.9,2514.8,3.18116748]
[1751238410198,0.92960018,2514.9,2514.8,3.13116748]
[1751238410413,0.002,2514.9,2514.8,3.13116748]
[1751238410686,0.93114066,2514.9,2514.8,3.13116748]
[1751238410887,0.002,2514.9,2514.8,3.13116748]
[1751238411512,0.93225092,2514.9,2514.8,3.13116748]
[1751238412019,0.93225092,2514.9,2514.8,3.08116748]
[1751238412315,1.13065092,2514.9,2514.8,3.08116748]
[1751238417496,0.93225092,2514.9,2514.8,3.08116748]
[1751238418111,0.93225092,2514.9,2514.8,3.18116748]
[1751238418315,4.02557654,2514.9,2514.0,8.043]
[1751238418493,3.18139517,2514.7,2513.8,1.4287]
[1751238418694,0.93025092,2514.6,2514.3,3.18179867]
[1751238418894,0.93025092,2514.5,2514.3,3.18179867]
[1751238419094,0.93025092,2514.4,2514.3,3.18179867]
[1751238420298,0.93025092,2514.4,2513.8,1.4287]
[1751238420499,3.09332562,2514.7,2514.3,3.1818001]
[1751238420820,4.0433819,2514.6,2514.3,3.1818001]
[1751238421132,4.0433819,2514.5,2514.2,3.18186507]
[1751238421297,0.95005628,2514.4,2514.3,3.18179521]
[1751238422431,2.20814946,2514.9,2514.8,29.275168]
[1751238422651,0.002,2515.0,2514.9,19.21012899]
[1751238423113,0.002,2516.1,2515.9,3.17977662]
[1751238425626,0.002,2516.1,2515.7,3.17999558]
[1751238425808,1.3696,2516.0,2515.0,1.3638]
[1751238426007,3.1799302,2515.8,2514.7,1.3638]
[1751238426203,2.637,2515.9,2515.4,3.18038377]
[1751238426442,1.82470436,2516.0,2514.9,3.18098532]
[1751238426738,1.82470436,2516.0,2514.7,1.3638]
[1751238426739,10.618,2515.9,2514.7,1.3638]
[1751238426911,3.18015991,2515.6,2515.0,3.18083456]
[1751238427516,1.3445,2515.5,2514.3,1.3638]
[1751238427715,1.3445,2515.5,2515.0,3.1809011]
[1751238427905,10.6,2515.4,2514.8,3.18114303]
[1751238428107,0.1984,2514.8,2514.7,3.18117935]
[1751238428334,3.18062578,2515.3,2514.8,3.18115446]
[1751238428741,14.97490871,2515.4,2514.8,3.18115446]
[1751238429138,2.637,2515.3,2515.0,3.18083753]
[1751238429345,0.1984,2514.9,2514.8,3.18109332]
[1751238430021,0.1984,2514.9,2514.7,3.1812338]
[1751238430417,3.18066157,2515.2,2514.4,3.18157533]
[1751238430623,1.7341,2514.7,2514.4,3.18165346]
[1751238430821,2.637,2514.6,2514.4,3.18165346]
[1751238431045,2.637,2514.6,2514.5,3.18154702]
[1751238431541,1.5357,2514.7,2514.6,3.1814205]
[1751238431729,4.1727,2514.7,2514.6,3.1814205]
[1751238432548,1.6116,2515.1,2514.1,6.36410642]
[1751238432843,2.637,2514.8,2514.7,3.18129399]
[1751238433057,2.637,2514.8,2514.3,3.18178267]
[1751238433226,2.637,2514.8,2512.7,1.5808]
[1751238433227,7.761128,2511.5,2510.8,0.002]
[1751238433557,1.91200096,2513.3,2509.2,10.001]
[1751238433558,0.62208855,2510.3,2509.2,10.001]
[1751238433717,0.62208855,2510.3,2509.5,18.799582]
[1751238433915,0.62208855,2510.3,2510.0,0.646645]
[1751238434134,0.62208855,2510.3,2509.9,0.646645]
[1751238434344,0.62208855,2510.3,2509.9,10.646645]
[1751238434552,0.62208855,2510.3,2509.8,13.484645]
[1751238434716,0.62208855,2510.3,2510.1,3.8337441]
[1751238435020,0.37012544,2510.2,2510.1,3.18712401]
[1751238435241,0.34556899,2510.3,2510.2,29.16062805]
[1751238435645,0.34556899,2510.3,2509.8,4.77691167]
[1751238435646,0.34556899,2510.3,2509.6,7.916188]
[1751238435860,0.34556899,2510.3,2510.2,3.18699705]
[1751238436045,0.34556899,2510.3,2510.2,6.34439405]
[1751238436248,0.34556899,2510.3,2510.0,8.591]
[1751238436561,0.34556899,2510.3,2510.2,3.18699705]
[1751238436730,1.29236036,2510.3,2510.2,3.18699705]
[1751238437468,0.34556899,2510.3,2510.2,3.18699705]
[1751238438131,0.34556899,2510.3,2510.2,11.76499705]
[1751238438332,0.34556899,2510.3,2510.2,12.31499705]
[1751238438573,0.34556899,2510.3,2510.2,34.06224505]
[1751238438876,0.94018347,2511.2,2511.1,10.55]
[1751238439029,2.3755527,2512.4,2511.4,3.18547423]
[1751238439232,1.5132,2512.5,2511.4,3.18547423]
[1751238439544,1.5132,2512.5,2511.7,3.18500355]
[1751238439739,1.90207527,2512.5,2511.2,1.5855]
[1751238439946,3.18432771,2512.4,2511.5,3.18533233]
[1751238440151,3.18468278,2512.1,2511.3,3.18552042]
[1751238440458,3.18467404,2512.1,2511.3,3.18552042]
[1751238440670,3.18467404,2512.1,2511.5,3.18533393]
[1751238440835,3.18423086,2512.4,2511.6,3.1852025]
[1751238441031,4.22788456,2512.4,2511.7,3.18507975]
[1751238441237,1.5132,2512.5,2511.2,8.558]
[1751238441646,1.5132,2512.5,2512.1,3.18455921]
[1751238442033,1.5132,2512.5,2512.0,3.1846695]
[1751238442239,1.5132,2512.5,2511.7,8.552]
[1751238442445,1.5132,2512.5,2512.0,3.18460796]
[1751238442836,1.5132,2512.5,2512.1,3.18457717]
[1751238443143,1.5132,2512.5,2511.9,3.18480455]
[1751238443144,0.1984,2512.1,2511.9,3.18480455]
[1751238443526,0.1984,2512.1,2512.0,3.18471337]
[1751238444168,1.5246,2513.0,2512.6,3.18386647]
[1751238444663,1.5246,2513.0,2511.8,3.18496695]
[1751238444664,0.1984,2512.6,2511.8,3.18496695]
[1751238444877,2.974,2512.9,2511.7,3.18506059]
[1751238444878,3.18441235,2512.3,2511.7,3.18506059]
[1751238445057,0.1984,2511.8,2511.5,8.508]
[1751238445375,0.1984,2512.0,2511.9,3.18484016]
[1751238445949,0.1984,2512.0,2511.7,3.18507673]
[1751238446145,0.1984,2511.8,2511.7,3.18507673]
[1751238446349,1.5799,2512.2,2512.0,3.18462215]
[1751238446566,0.1984,2512.1,2512.0,3.18462215]
[1751238447765,0.1984,2512.1,2511.9,3.1847725]
[1751238448161,0.1984,2512.1,2511.6,0.1984]
[1751238448362,0.1984,2511.9,2511.6,3.18510812]
[1751238448561,0.1984,2511.9,2511.5,3.1853474]
[1751238448562,0.1984,2511.9,2511.7,3.18507401]
[1751238448869,0.1984,2511.9,2511.8,3.18496695]
[1751238451858,0.2004,2512.5,2512.4,3.18420633]
[1751238452767,0.002,2512.5,2512.4,3.18420633]
[1751238453333,1.5525,2512.0,2510.0,1.6336]
[1751238453537,14.94481558,2512.5,2510.5,3.18652059]
[1751238453538,3.18523635,2511.6,2510.5,3.18652059]
[1751238453831,13.58667827,2511.8,2510.8,1.58]
[1751238453832,1.5525,2511.8,2510.8,1.58]
[1751238454031,12.974,2512.1,2511.5,3.18522869]
[1751238454237,1.6295,2512.2,2511.8,3.18486105]
[1751238454437,1.6295,2512.2,2511.2,0.55]
[1751238454637,1.6295,2512.2,2511.8,3.18488024]
[1751238454868,1.6295,2512.2,2512.0,3.18470109]
[1751238455047,1.6295,2512.2,2511.3,3.73549853]
[1751238455367,1.6295,2512.2,2511.8,3.18489101]
[1751238455943,1.6295,2512.2,2511.9,3.18482893]
[1751238456246,1.6295,2512.2,2511.8,3.18491452]
[1751238456578,3.11087296,2512.2,2511.2,3.18560265]
[1751238456737,3.18491856,2511.9,2511.3,3.18553087]
[1751238457350,3.18491856,2511.9,2511.4,3.18546705]
[1751238457549,0.36705828,2511.8,2511.3,3.18554169]
[1751238457753,3.18491172,2511.9,2511.3,3.18554169]
[1751238458048,0.36705828,2511.8,2511.4,3.18544239]
[1751238458371,3.1845866,2512.1,2511.5,3.18534195]
[1751238458567,3.55221368,2512.0,2511.4,3.18542723]
[1751238458870,0.36748131,2511.9,2511.5,3.18527214]
[1751238459073,0.36748131,2511.8,2511.4,3.18540114]
[1751238459251,4.93749486,2511.7,2510.5,3.18661621]
[1751238459442,3.18541593,2511.5,2510.9,3.18607645]
[1751238459760,0.36789486,2511.4,2511.0,3.18590445]
[1751238459941,0.36789486,2511.3,2511.0,3.18590445]
[1751238460142,0.36789486,2511.2,2511.0,3.18590445]
[1751238460369,0.36855563,2511.1,2510.9,3.18610319]
[1751238460573,13.18529126,2511.6,2511.0,3.18598168]
[1751238460738,15.27928993,2511.6,2511.0,3.18598168]
[1751238460938,15.27930305,2511.6,2511.0,3.18598168]
[1751238461164,18.25430305,2511.6,2511.0,3.18598168]
[1751238461841,0.36911962,2511.5,2511.0,3.18598168]
[1751238462062,0.36911962,2511.4,2510.8,3.18623546]
[1751238462266,0.36911962,2511.3,2511.2,3.18572793]
[1751238464944,0.36911962,2511.3,2511.2,9.01749793]
[1751238465162,0.94920058,2512.0,2511.9,3.18484016]
[1751238465366,1.32021133,2512.0,2511.9,3.18484016]
[1751238465643,1.32021133,2512.0,2511.9,2.92610762]
[1751238466292,11.32021133,2512.0,2511.9,2.5379926]
[1751238466579,1.32021133,2512.0,2511.9,2.5379926]
[1751238466761,11.32021133,2512.0,2511.9,2.5379926]
[1751238467395,13.69576403,2512.0,2511.9,2.5379926]
[1751238467690,0.1984,2511.9,2511.8,3.18494961]
[1751238467885,1.51861133,2511.9,2511.8,3.18494961]
[1751238469874,1.32021133,2511.9,2511.8,3.93334961]
[1751238470756,1.32021133,2511.9,2511.8,21.48494961]
[1751238470952,1.32021133,2511.9,2511.8,11.48494961]
[1751238471276,0.37101075,2511.9,2511.8,11.48494961]
[1751238471483,0.37101075,2511.9,2511.8,11.48094961]
[1751238471686,0.37101075,2511.9,2510.7,3.18631263]
[1751238471863,1.5769,2511.2,2511.1,3.1858548]
[1751238472063,10.0,2511.5,2510.5,3.18661621]
[1751238472251,0.3719947,2511.4,2511.3,3.18560108]
[1751238472678,1.543,2511.6,2511.3,3.18560108]
[1751238472679,1.543,2511.6,2511.3,3.18554235]
[1751238472865,1.543,2511.6,2511.0,8.364]
[1751238473058,1.543,2511.6,2511.1,3.18578144]
[1751238473260,2.6973,2511.6,2511.1,3.18578144]
[1751238473666,0.37206339,2511.5,2511.1,3.18578144]
[1751238473866,0.37206339,2511.4,2511.1,3.18578144]
[1751238474062,0.37206339,2511.3,2511.1,3.18578144]
[1751238474262,2.6973,2511.6,2511.1,3.18578144]
[1751238474480,0.37204182,2511.5,2511.2,3.1857211]
[1751238474786,0.37204182,2511.4,2511.3,3.18560108]
[1751238475277,2.49494105,2511.6,2511.4,3.1853709]
[1751238475588,0.95194105,2511.6,2511.5,3.1853474]
[1751238475757,10.0,2511.7,2511.6,3.18522057]
[1751238475951,11.32393585,2511.7,2511.6,3.18522057]
[1751238476350,11.32393585,2511.7,2511.3,3.18552824]
[1751238476555,0.37201593,2511.6,2511.5,3.1853474]
[1751238477172,1.6425,2512.0,2511.8,3.18494634]
[1751238477372,1.6425,2512.0,2511.7,3.18506466]
[1751238477564,1.6425,2512.0,2511.8,3.18496229]
[1751238478154,10.0,2511.9,2511.7,3.18504454]
[1751238478359,1.6425,2512.0,2511.7,3.18504454]
[1751238478559,1.6425,2512.0,2511.8,3.18494143]
[1751238478766,0.95186426,2512.1,2511.9,3.18476237]
[1751238478990,10.95186426,2512.3,2511.9,3.18476237]
[1751238479199,0.95186426,2512.2,2511.9,3.18476237]
[1751238479367,11.86522468,2512.3,2512.0,3.18471337]
[1751238479567,0.95184377,2512.2,2512.0,3.18471337]
[1751238479802,0.95184377,2512.1,2512.0,3.18471337]
[1751238479967,0.95184377,2512.2,2511.9,3.18478186]
[1751238480290,10.0,2512.0,2511.1,1.567]
[1751238480495,3.18487817,2511.9,2511.3,3.18560108]
[1751238480684,0.1984,2511.3,2511.2,3.18566628]
[1751238480904,0.1984,2511.3,2511.2,11.44966628]
[1751238481802,0.1984,2511.3,2511.2,3.18566628]
[1751238482001,0.1984,2511.3,2511.2,3.18572793]
[1751238482372,0.1984,2511.3,2511.0,8.253]